Cogmind - Beta 9.1 @@@ ROGUE MODE // 2019.10.30 @ 11:28:56 Player: Alexbot Result: Escaped! Performance ------------- Evolutions (9) 4500 Regions Visited (30) 6000 Robots Destroyed (300) 1500 Value Destroyed (15355) 15355 Prototype IDs (75) 1500 Alien Tech Used (1) 200 Bonus (12118) 12118 TOTAL SCORE: 41173 Bonus ------- High Alert Combat Kills 2293 Follower Combat Kills 3290 Entered Garrisons 200 Used RIF Installer 500 Network Hubs Disabled 200 Aligned with FarCom 300 Met Data Miner 300 Built Enhanced Grunts 300 A7 Reached Mainframe 300 Met R17 at Cetus 500 Met R17 at Research 2000 Win 3000 Friendly Fire -1065 Cogmind --------- Core Integrity 1524/1600 Matter 300/300 Energy 1096/1100 System Corruption 1% Temperature Cool (0) Location To Epsilon Eridani Parts ------- Power (3) Singularity Reactor Propulsion (2) Armored Huge Wheel Utility (16) Experimental Coolant Injector Large Storage Unit Large Storage Unit Large Storage Unit Experimental Terrain Scan Processor Improved Weapon Cycler Advanced Transmission Jammer Experimental Propulsion Shielding Experimental Utility Shielding Improved Powered Armor Advanced Force Field Hacking Suite Hacking Suite Improved Hacking Suite Improved Hacking Suite Advanced System Shield Weapon (4) Proton Burst Cannon Enhanced Nova Cannon Mini Smartbomb Launcher Force Lance Inventory (22) Light Particle Reactor Energy Well (500) Experimental Terrain Scanner Precision Matter Filter Quantum Capacitor Experimental Propulsion Shielding Improved Weapon Shielding Improved Weapon Shielding Improved Powered Armor Improved Focal Shield Experimental Thermal Shield Advanced Force Field System Restoration Module Gamma Rifle Heavy Wave Gun Advanced Variable Charge Gun HERF Cannon Proton Burst Cannon Graviton Cannon Graviton Cannon Advanced Remote Datajack Peak State ------------ Power Singularity Reactor Propulsion Armored Huge Wheel Utility Experimental Coolant Injector Large Storage Unit Large Storage Unit Large Storage Unit Experimental Terrain Scan Processor Improved Weapon Cycler Advanced Transmission Jammer Experimental Propulsion Shielding Experimental Utility Shielding Improved Powered Armor Advanced Force Field Hacking Suite Hacking Suite Improved Hacking Suite Improved Hacking Suite Advanced System Shield Weapon Proton Burst Cannon Enhanced Nova Cannon Mini Smartbomb Launcher Force Lance Inventory Light Particle Reactor Energy Well Experimental Terrain Scanner Precision Matter Filter Quantum Capacitor Experimental Propulsion Shielding Improved Weapon Shielding Improved Weapon Shielding Improved Powered Armor Improved Focal Shield Experimental Thermal Shield Advanced Force Field System Restoration Module Gamma Rifle Heavy Wave Gun Advanced Variable Charge Gun HERF Cannon Proton Burst Cannon Graviton Cannon Graviton Cannon Advanced Remote Datajack [Rating: 163] Favorites ----------- Power Quantum Reactor Engine Improved Ion Engine Power Core Light Fission Core Reactor Quantum Reactor Propulsion Armored Huge Wheel Wheel Armored Huge Wheel Utility Large Storage Unit Device Experimental Terrain Scanner Storage Large Storage Unit Processor Experimental Terrain Scan Processor Hackware Improved Hacking Suite Protection Experimental Propulsion Shielding Weapon Advanced Assault Cannon Energy Gun Heavy Wave Gun Energy Cannon Proton Burst Cannon Ballistic Gun KE Penetrator Ballistic Cannon Advanced Assault Cannon Launcher Proton Missile Launcher Special Weapon Improved Remote Datajack Slashing Weapon Ionic Axe Piercing Weapon Force Lance Build | -11 -10 -10 -10 -9 -8 -7 -7 -7 -7 -6 -6 -6 -6 -6 -6 -6 -5 -5 -5 -5 -5 -4 -4 -4 -4 -4 -4 -3 -2 -1 ------- Run | Scr Mat Min Exi Min Mat Fac Low Low Zio Pro Fac Gar Fac Low Low Dat Pro Fac Upp Upp War Pro Fac Ext Cet Arc Hub Res Res Acc Slots Evolved 18 | . . . . . 4 2 . . . . 2 . . . . . . 2 . . . . 2 . . . . 2 2 2 Power 2 | . . . . . . . . . . . . . . . . . . . . . . . 1 . . . . . . 1 Propulsion . | . . . . . . . . . . . . . . . . . . . . . . . . . . . . . . . Utility 14 | . . . . . 4 1 . . . . 2 . . . . . . 1 . . . . 1 . . . . 2 2 1 Weapon 2 | . . . . . . 1 . . . . . . . . . . . 1 . . . . . . . . . . . . Parts Attached 396 | 6 5 1 2 . 8 8 3 . 1 . 27 6 14 3 . 3 3 12 2 13 . 5 41 25 18 2 29 18 94 47 Power 28 | 1 1 . . . 1 . . . . . 2 . . . . . . 2 . . . 1 3 2 3 . . . 8 4 Engine 3 | 1 1 . . . 1 . . . . . . . . . . . . . . . . . . . . . . . . . Core 7 | . . . . . . . . . . . 2 . . . . . . 1 . . . . 2 2 . . . . . . Reactor 18 | . . . . . . . . . . . . . . . . . . 1 . . . 1 1 . 3 . . . 8 4 Propulsion 11 | 2 . . . . 1 1 . . . . . 1 . . . . 1 . . . . . . . 1 . 3 1 . . Treads . | . . . . . . . . . . . . . . . . . . . . . . . . . . . . . . . Leg . | . . . . . . . . . . . . . . . . . . . . . . . . . . . . . . . Wheel 11 | 2 . . . . 1 1 . . . . . 1 . . . . 1 . . . . . . . 1 . 3 1 . . Hover . | . . . . . . . . . . . . . . . . . . . . . . . . . . . . . . . Flight . | . . . . . . . . . . . . . . . . . . . . . . . . . . . . . . . Utility 229 | 1 2 1 2 . 5 2 . . 1 . 6 . 11 2 . . 1 5 2 7 . 1 28 12 10 2 25 10 61 32 Device 152 | . 2 1 . . 4 1 . . . . 1 . 1 1 . . . 1 1 4 . . 23 10 7 2 21 4 43 25 Storage 10 | 1 . . 2 . 1 . . . 1 . . . . . . . . . . . . . . . . . . 1 4 . Processor 4 | . . . . . . 1 . . . . . . 1 1 . . . . . . . . 1 . . . . . . . Hackware 23 | . . . . . . . . . . . 5 . 5 . . . . 2 . . . . . . 1 . 4 1 2 3 Protection 40 | . . . . . . . . . . . . . 4 . . . 1 2 1 3 . 1 4 2 2 . . 4 12 4 Artifact . | . . . . . . . . . . . . . . . . . . . . . . . . . . . . . . . Weapon 128 | 2 2 . . . 1 5 3 . . . 19 5 3 1 . 3 1 5 . 6 . 3 10 11 4 . 1 7 25 11 Energy Gun 32 | 1 2 . . . 1 . . . . . . . . . . . . 1 . 1 . . 5 1 2 . 1 2 13 2 Energy Cannon 24 | . . . . . . . . . . . 7 2 . . . . . 1 . 2 . 1 2 2 1 . . . 4 2 Ballistic Gun 12 | 1 . . . . . . . . . . . . . . . . . . . 1 . . 1 5 1 . . 2 1 . Ballistic Cannon 33 | . . . . . . 4 3 . . . 12 2 1 . . 1 . 1 . 1 . . . 1 . . . 2 4 1 Launcher 12 | . . . . . . . . . . . . 1 2 1 . 2 1 1 . . . 1 . . . . . . . 3 Special Weapon 10 | . . . . . . . . . . . . . . . . . . 1 . 1 . 1 2 . . . . 1 2 2 Impact Weapon . | . . . . . . . . . . . . . . . . . . . . . . . . . . . . . . . Slashing Weapon 4 | . . . . . . 1 . . . . . . . . . . . . . . . . . 2 . . . . 1 . Piercing Weapon 1 | . . . . . . . . . . . . . . . . . . . . . . . . . . . . . . 1 Special Melee Weapon . | . . . . . . . . . . . . . . . . . . . . . . . . . . . . . . . Unidentified Prototypes 17 | . . . . . . . . . . . 1 . 1 . . . . 2 . 1 . . . . 3 . 1 . 8 . Parts Lost 39 | . 1 . . . 1 . . . . . 1 2 1 1 . . 3 . . . . 2 5 3 3 . 4 . 11 1 Power 6 | . . . . . . . . . . . 1 . . . . . . . . . . . 2 . 1 . . . 1 1 Propulsion 2 | . . . . . . . . . . . . 1 . . . . 1 . . . . . . . . . . . . . Utility 8 | . . . . . . . . . . . . . 1 . . . . . . . . . . 1 1 . 2 . 3 . Weapon 23 | . 1 . . . 1 . . . . . . 1 . 1 . . 2 . . . . 2 3 2 1 . 2 . 7 . Highest Loss Streak 3 | . 1 . . . 1 . . . . . 1 1 1 1 . . 2 . . . . 1 2 2 2 . 1 . 3 1 Average Slot Usage (%) 88 | . 96 100 100 100 80 79 91 92 92 92 90 88 91 90 93 75 86 88 76 85 94 90 88 87 87 89 89 83 87 90 Engine 1 | . 13 14 14 14 9 7 7 7 7 7 . . . . . . . . . . . . . . . . . . . . Core 2 | . . . . . . . . . . . 5 6 6 6 6 6 6 . . . . . 5 10 1 . . . . . Reactor 4 | . . . . . . . . . . . . . . . . . . 4 5 5 5 5 4 . 7 10 10 9 7 10 Wheel 6 | . 28 28 28 28 11 7 7 7 7 7 6 6 6 6 6 6 5 5 5 5 5 5 5 5 4 5 4 3 4 4 Device 11 | . 10 14 5 . 18 23 23 23 20 15 1 6 1 6 6 6 6 2 5 7 11 11 9 8 15 15 9 11 15 13 Storage 17 | . 14 14 22 28 24 23 23 23 25 30 20 20 20 20 20 20 20 17 17 17 17 17 15 15 15 15 15 13 13 12 Processor 4 | . . . . . . 6 7 7 7 7 6 6 5 5 6 6 6 5 5 5 5 5 5 5 5 5 5 4 4 4 Hackware 14 | . . . . . . . . . . . 30 26 27 20 20 20 20 22 17 13 11 11 10 9 8 10 17 18 16 19 Protection 6 | . . . . . . . . . . . . . 2 6 6 6 6 7 11 12 11 10 11 12 6 5 5 8 9 10 Energy Gun 3 | . 14 14 14 14 9 . . . . . . . . . . . . . 5 2 . . 5 2 6 . 1 2 6 3 Energy Cannon 2 | . . . . . . . . . . . 3 6 2 . . . . 2 . 2 5 3 3 5 6 10 8 . 2 4 Ballistic Gun 2 | . 14 14 14 14 9 . . . . . . . . . . . . . . 2 5 5 3 7 . 5 5 1 1 . Ballistic Cannon 5 | . . . . . . 8 22 23 23 23 13 3 8 6 6 . 6 7 . 2 5 4 . . 5 5 5 6 1 . Launcher 1 | . . . . . . . . . . . . 4 8 10 13 1 6 4 . . . 4 . . . . . . . 1 Naked Turns . | . . . . . . . . . . . . . . . . . . . . . . . . . . . . . . . Heaviest Build 192 | 13 15 15 42 42 63 118 118 79 94 94 116 116 98 98 81 81 81 96 83 102 92 108 116 130 139 141 137 178 192 178 Greatest Support 28 | 26 26 26 26 26 28 28 28 28 28 28 28 28 28 28 28 28 28 28 28 28 28 28 28 28 28 28 28 28 28 28 Greatest Overweight (x) 6 | . . . 1 1 2 4 4 2 3 3 4 4 3 3 2 2 2 3 2 3 3 3 4 4 4 5 4 6 6 6 Average Overweight (x) 3 | . . . . 1 1 3 2 2 2 3 2 2 2 2 2 2 2 2 2 2 3 2 3 3 3 4 4 4 4 4 Largest Inventory Capacity 28 | 6 6 6 16 16 22 22 22 22 28 28 28 22 22 22 22 22 22 22 22 22 22 22 22 22 22 22 22 22 28 22 Average Capacity 21 | 5 6 6 12 16 20 22 22 22 23 28 22 22 22 22 22 22 22 22 22 22 22 22 22 22 22 22 22 21 22 22 Most Carried 28 | 2 6 6 13 13 22 22 22 22 28 28 28 22 22 22 22 22 22 22 22 22 22 22 22 22 22 22 22 22 25 22 Average Carried 20 | 1 5 5 9 13 18 21 21 22 23 27 21 20 21 21 21 22 19 20 21 21 22 21 20 21 20 21 20 19 20 20 Final Capacity 28 | 6 6 6 16 16 22 22 22 22 28 28 22 22 22 22 22 22 22 22 22 22 22 22 22 22 22 22 22 22 22 22 Final Carried 28 | 2 6 6 13 13 22 22 22 22 28 28 21 19 21 22 22 22 19 22 22 22 22 20 22 22 21 22 20 21 21 22 Class Distribution -------------------- 47% | Hacker-Mutant 11% | Hacker-Skirmisher 8% | Hauler-Gunner 7% | Hacker-Assassin 5% | Scavenger-Mutant 5% | Mutant 4% | Hauler-Skirmisher 3% | Hacker-Tank Dominant Class ---------------- Mutant | -10/Materials Mutant | -10/Mines Mutant | -10/Exiles Mutant | -9/Mines Hauler-Mutant | -8/Materials Hauler-Skirmisher | -7/Factory Hauler-Gunner | -7/Lower Caves Hauler-Gunner | -7/Lower Caves Hauler-Gunner | -7/Zion Hauler-Gunner | -6/Proximity Caves Hacker-Mutant | -6/Factory Hacker-Mutant | -6/Garrison Hacker-Mutant | -6/Factory Hacker-Mutant | -6/Lower Caves Hacker-Mutant | -6/Lower Caves Hacker-Mutant | -6/Data Miner Hacker-Mutant | -5/Proximity Caves Hacker-Mutant | -5/Factory Hacker-Skirmisher | -5/Upper Caves Hacker-Mutant | -5/Upper Caves Hacker-Mutant | -5/Warlord Hacker-Skirmisher | -4/Proximity Caves Hacker-Mutant | -4/Factory Hacker-Mutant | -4/Extension Commander-Skirmisher | -4/Cetus Scavenger-Mutant | -4/Archives Hacker-Mutant | -4/Hub_04(d) Hacker-Skirmisher | -3/Research Hacker-Mutant | -2/Research Hacker-Mutant | -1/Access Resources | -11 -10 -10 -10 -9 -8 -7 -7 -7 -7 -6 -6 -6 -6 -6 -6 -6 -5 -5 -5 -5 -5 -4 -4 -4 -4 -4 -4 -3 -2 -1 ----------- Run | Scr Mat Min Exi Min Mat Fac Low Low Zio Pro Fac Gar Fac Low Low Dat Pro Fac Upp Upp War Pro Fac Ext Cet Arc Hub Res Res Acc Matter Collected 7355 | 254 321 58 . . 196 219 66 36 10 . 601 152 278 236 116 . 139 172 54 168 . 295 447 316 238 93 373 247 1235 1035 Remotely . | . . . . . . . . . . . . . . . . . . . . . . . . . . . . . . . Salvage Created 14705 | . 408 104 . . 420 509 86 50 . . 1437 291 557 7 152 . 248 56 . 207 . 577 777 1014 849 392 1091 631 3098 1744 Parts 700 | . 33 4 . . 23 22 . 5 . . 82 19 24 . 7 . 5 5 . 9 . 27 37 44 25 20 53 21 129 106 Haulers Intercepted 5 | . . . . . . . . . . . 1 . . . . . . . . . . . . . . . 1 1 2 . Recyclers Shooed 11 | . . . . . 1 . . . . . 3 . 1 . . . . . . . . . 1 . . . 1 3 1 . Parts Field Recycled . | . . . . . . . . . . . . . . . . . . . . . . . . . . . . . . . Retrieved Matter . | . . . . . . . . . . . . . . . . . . . . . . . . . . . . . . . Parts Self-Destructed 62 | . . . . . . . . 5 . . . . . 7 26 . 7 . . 9 . 8 . . . . . . . . Prevented 27 | . . . . . . . 1 . . . . . . . 1 . 9 . . . . 16 . . . . . . . . Kills | -11 -10 -10 -10 -9 -8 -7 -7 -7 -7 -6 -6 -6 -6 -6 -6 -6 -5 -5 -5 -5 -5 -4 -4 -4 -4 -4 -4 -3 -2 -1 ------- Run | Scr Mat Min Exi Min Mat Fac Low Low Zio Pro Fac Gar Fac Low Low Dat Pro Fac Upp Upp War Pro Fac Ext Cet Arc Hub Res Res Acc Combat Hostiles Destroyed 245 | . 7 2 . . 7 12 . 1 . . 33 9 12 1 5 . 3 1 . 4 . 11 10 11 12 2 16 8 42 36 Guns 44 | . 7 2 . . 7 . . . . . . . . . . . . . . 3 . . 6 . . . 4 . 11 4 Cannons 113 | . . . . . . 12 . 1 . . 33 6 7 1 2 . . 1 . . . 2 . 4 8 . 8 8 17 3 AOE 44 | . . . . . . . . . . . . 3 5 . 3 . 1 . . . . 7 . . . . . . 1 24 Classes Destroyed 19 | . 4 . . . 1 4 . . . . 5 2 2 1 . . . . . . . . . . . . . . . . Worker 13 | . 2 . . . . 1 . . . . 2 . . . . . . . . . . . 1 . . . . 1 1 5 Builder 5 | . . . . . . 1 . . . . 1 . . . . . . . . . . . . . . . 1 . . 2 Tunneler 5 | . . . . . . . . . . . 1 . . . . . . . . . . . 1 . . . . . . 3 Hauler 5 | . . . . . . . . . . . 1 . . . . . . . . . . . . . . . 1 1 2 . Recycler 3 | . . . . . . 1 . . . . . . . . . . . . . . . . . . . . . . . 2 Mechanic 1 | . . . . . . . . . . . . . 1 . . . . . . . . . . . . . . . . . Operator 8 | . 1 . . . . . . . . . . . . . . . . . . . . . . 1 . 5 1 . . . Watcher 13 | . 2 . . . 1 3 . . . . 1 . . . . . . . . . . . 3 2 . . . 1 . . Swarmer 52 | . . . . . . . . . . . 4 5 . . 3 . . . . 2 . 5 . . 3 . 4 . 4 22 Saboteur 1 | . . . . . . . . . . . . . 1 . . . . . . . . . . . . . . . . . Grunt 84 | . 7 2 . . 2 9 . . . . 13 . 6 . 1 . 2 . . . . 5 . 3 6 . 4 5 12 7 Brawler 7 | . . . . . . 1 . . . . 5 . . . . . . . . . . . . . . . . . 1 . Duelist 3 | . . . . . . . . . . . 1 . 1 . . . . . . . . . . . . . . . 1 . Protector 2 | . . . . . . . . . . . 2 . . . . . . . . . . . . . . . . . . . Sentry 38 | . . . . . 5 1 . 1 . . 3 1 2 . . . . . . 1 . 1 2 5 . 2 4 3 5 2 Hunter 8 | . . . . . . . . . . . . 1 . . . . 1 . . . . . . 3 . . 1 . 2 . Programmer 43 | . . . . . . 1 . . . . 5 1 2 . . . . 1 . . . . 8 . . . 3 . 17 5 Behemoth 2 | . . . . . . . . . . . . 1 . . . . . . . 1 . . . . . . . . . . Cetus Guard 3 | . . . . . . . . . . . . . . . . . . . . . . . . . 3 . . . . . Thug 3 | . . . . . . . . . . . . . . . 1 . 1 . . . . . . . 1 . . . . . Mutant 1 | . . . . . . . . . . . . . . 1 . . . . . . . . . . . . . . . . Best Kill Streak 13 | . 4 2 . . 2 5 . 1 . . 10 4 5 1 3 . 3 1 . 3 . 6 3 4 4 3 4 2 6 13 Combat Bots Only 10 | . 3 2 . . 2 5 . 1 . . 10 4 5 1 3 . 3 1 . 3 . 6 2 4 4 1 4 2 6 10 Max Kills in Single Turn 4 | . 1 1 . . 1 1 . 1 . . 1 2 2 1 2 . 2 1 . 1 . 4 2 1 1 1 1 1 2 4 Gunslinging . | . . . . . . . . . . . . . . . . . . . . . . . . . . . . . . . Exploded 4 | . . . . . . . . . . . . 2 2 . 2 . 1 . . . . 4 . . . . . . 1 3 Melee . | . . . . . . . . . . . . . . . . . . . . . . . . . . . . . . . Uniques/NPCs Destroyed . | . . . . . . . . . . . . . . . . . . . . . . . . . . . . . . . Combat | -11 -10 -10 -10 -9 -8 -7 -7 -7 -7 -6 -6 -6 -6 -6 -6 -6 -5 -5 -5 -5 -5 -4 -4 -4 -4 -4 -4 -3 -2 -1 -------- Run | Scr Mat Min Exi Min Mat Fac Low Low Zio Pro Fac Gar Fac Low Low Dat Pro Fac Upp Upp War Pro Fac Ext Cet Arc Hub Res Res Acc Damage Taken 13535 | . 223 118 . . 249 129 . . . . 1204 434 404 186 179 . 278 161 . 475 288 611 1447 1482 745 75 836 63 3270 678 Core 1528 | . 80 48 . . 32 5 . . . . 271 78 34 28 36 . 22 19 . 53 67 111 107 155 31 . 48 10 217 76 Absorbed by Shields 2388 | . . . . . . . . . . . . 4 . . . . . . . . . . 52 24 232 . 83 66 1397 530 Core Remaining (%) 80 | 100 . . . 48 94 . . . . 99 . . . . . . 44 . . . . 75 . . . . 70 99 85 95 Volleys Fired 920 | . 28 6 . . 37 16 1 2 . . 42 29 41 9 11 . 10 18 . 11 . 26 100 58 45 24 67 10 225 104 Largest 3 | . 2 2 . . 2 2 3 3 . . 3 1 2 1 2 . 1 2 . 1 . 3 2 2 1 1 3 3 3 1 Hottest 250 | . 65 65 . . 70 96 144 144 . . 178 90 88 40 86 . 46 98 . 250 . 188 250 110 88 81 156 177 225 120 Shots Fired 1311 | . 54 10 . . 69 74 3 6 . . 132 37 52 9 12 . 10 19 . 11 . 50 112 62 45 23 69 43 305 104 Gun 493 | . 54 10 . . 69 6 . . . . . . . . . . . . . 7 . 14 98 6 . 12 26 9 168 14 Cannon 731 | . . . . . . 68 3 6 . . 132 34 45 9 9 . 4 12 . 4 . 24 14 56 45 11 43 33 132 47 Launcher 53 | . . . . . . . . . . . . 3 7 . 3 . 6 3 . . . 12 . . . . . . . 19 Special 34 | . . . . . . . . . . . . . . . . . . 4 . . . . . . . . . 1 5 24 Kinetic 523 | . 28 6 . . 37 73 3 6 . . 107 16 45 9 9 . 4 5 . . . 28 10 5 . 12 16 34 63 7 Thermal 343 | . . . . . 31 1 . . . . 18 8 . . . . . 7 . 11 . 10 84 1 . . 22 1 125 24 Explosive 21 | . . . . . . . . . . . . . . . 2 . . . . . . . . . . . . . . 19 Electromagnetic 390 | . 26 4 . . 1 . . . . . 7 13 7 . 1 . 6 3 . . . 12 18 56 45 11 31 7 112 30 Robot Hit Streak 21 | . 11 6 . . 8 9 2 4 . . 21 7 6 12 6 . 4 2 . 8 . 6 11 7 6 4 11 10 12 12 Robot Miss Streak 7 | . 4 3 . . 5 7 1 1 . . 3 4 3 2 1 . 1 2 . 6 . 3 5 6 5 3 2 2 7 5 Penetration Max 1 | . . . . . . . . . . . . . . . . . . . . . . . 1 1 . . 1 . . . Secondary Targets 2 | . . . . . . . . . . . . . . . . . . . . . . . 1 . . . . . 1 . Max Gunslinging Chain 1 | . . . . . . . . . . . . . . . . . . . . . . . 1 . . . . . 1 . Capacitor 336 | . . . . . . . . . . . . . . . . . . . . . . . . 10 45 11 47 3 192 28 Autonomous 181 | . . . . . . 46 . . . . 49 9 . . . . . . . . . . . . . . . 31 46 . Shots Hit Robots 820 | . 35 7 . . 43 46 2 4 . . 96 25 29 6 8 . 7 7 . 7 . 28 58 37 25 12 46 32 186 74 Core Hits 478 | . 20 5 . . 21 19 1 2 . . 49 16 26 2 13 . 12 5 . 10 . 22 21 16 20 8 23 15 69 83 Critical Hits 30 | . . . . . . 3 . . . . 5 . . . 1 . . . . . . . 1 . . 4 5 3 7 1 Critical Kills 13 | . . . . . . 1 . . . . 1 . . . . . . . . . . . . . . 3 3 1 3 1 Critical Parts Destroyed 16 | . . . . . . 2 . . . . 3 . . . 1 . . . . . . . 1 . . 1 2 2 4 . Melee Attacks 65 | . . . . . . . . . . . . . . . . . . . . . . . . 15 . . . . 9 41 Impact . | . . . . . . . . . . . . . . . . . . . . . . . . . . . . . . . Slashing 24 | . . . . . . . . . . . . . . . . . . . . . . . . 15 . . . . 9 . Piercing 41 | . . . . . . . . . . . . . . . . . . . . . . . . . . . . . . 41 Sneak Attacks 5 | . . . . . . . . . . . . . . . . . . . . . . . . . . . . . 1 4 Combat Hostiles . | . . . . . . . . . . . . . . . . . . . . . . . . . . . . . . . Follow-up Attacks . | . . . . . . . . . . . . . . . . . . . . . . . . . . . . . . . Damage Inflicted 40435 | . 498 91 . . 586 3246 60 114 . . 5345 1262 1459 223 592 . 739 262 . 542 . 1369 2087 1620 1492 492 1968 2012 8552 5824 Guns 8458 | . 498 91 . . 586 . . . . . . . . . . . . . . 542 . 162 1707 68 . 198 580 139 3518 369 Cannons 24232 | . . . . . . 3246 60 114 . . 5300 1119 905 223 270 . 78 167 . . . 486 371 1552 1492 294 1239 1873 4516 927 Explosions 7097 | . . . . . . . . . . . 45 143 554 . 322 . 661 95 . . . 721 . . . . 149 . 361 4046 Melee 639 | . . . . . . . . . . . . . . . . . . . . . . . . . . . . . 157 482 Ramming 9 | . . . . . . . . . . . . . . . . . . . . . . . 9 . . . . . . . Kinetic 17052 | . 291 40 . . 333 3246 60 114 . . 4590 704 905 223 270 . 78 37 . . . 440 259 68 . 198 345 1873 2978 . Thermal 7747 | . . . . . 237 . . . . . 508 232 176 . . . 112 130 . 542 . 316 1350 . . . 644 . 2972 528 Explosive 4496 | . . . . . . . . . . . . . . . 212 . . . . . . . . . . . . . 238 4046 Electromagnetic 10492 | . 207 51 . . 16 . . . . . 247 326 378 . 110 . 549 95 . . . 613 469 1552 1492 294 979 139 2207 768 Impact . | . . . . . . . . . . . . . . . . . . . . . . . . . . . . . . . Slashing 157 | . . . . . . . . . . . . . . . . . . . . . . . . . . . . . 157 . Piercing 482 | . . . . . . . . . . . . . . . . . . . . . . . . . . . . . . 482 Highest Corruption 17 | . . . . . . . . . . . . . 1 4 4 4 4 4 4 4 9 3 13 13 11 9 8 . 17 5 Average Corruption 6 | . . . . . . . . . . . . . 1 2 4 4 4 3 4 4 4 3 5 11 10 8 7 . 9 2 Corruption Purged 26 | . . . . . . . . . . . . . . . . . . . . . . . . 2 2 1 2 . 14 5 Effects 368 | . . . . . . . . . . . . . 6 5 8 2 12 5 4 12 1 9 34 50 25 13 34 . 140 8 Message Errors 64 | . . . . . . . . . . . . . 2 3 3 . 1 2 . 3 . 3 8 6 4 1 4 . 22 2 Matter Fused 75 | . . . . . . . . . . . . . . 1 1 1 6 2 1 2 1 2 6 11 3 3 9 . 25 1 Heat Flow Errors 35 | . . . . . . . . . . . . . . . 1 1 . . 2 1 . . 2 3 3 2 2 . 17 1 Energy Discharges 41 | . . . . . . . . . . . . . 1 1 3 . 1 1 1 1 . 2 1 9 4 . 3 . 12 1 Parts Rejected 4 | . . . . . . . . . . . . . . . . . 1 . . . . . . . . . . . 3 . Data Loss (minor) 38 | . . . . . . . . . . . . . 1 . . . 2 . . 5 . 1 2 2 1 2 6 . 14 2 Data Loss (major) 15 | . . . . . . . . . . . . . . . . . . . . . . . 3 2 . . 3 . 7 . Misfires 12 | . . . . . . . . . . . . . . . . . . . . . . . 3 2 . . 2 . 5 . Alerts 5 | . . . . . . . . . . . . . . . . . . . . . . . 1 1 . . . . 3 . Misdirections 13 | . . . . . . . . . . . . . . . . . . . . . . . 1 5 4 . . . 3 . Targeting Errors 61 | . . . . . . . . . . . . . 2 . . . 1 . . . . 1 6 9 6 4 3 . 28 1 Weapon Failures 5 | . . . . . . . . . . . . . . . . . . . . . . . 1 . . 1 2 . 1 . Overload Shots . | . . . . . . . . . . . . . . . . . . . . . . . . . . . . . . . Overflow Damage 2400 | . . . . . . 550 21 . . . 245 85 115 . . . 6 . . . . 19 . 24 60 . 45 209 736 285 Projectiles 1969 | . . . . . . 550 21 . . . 245 85 54 . . . . . . . . 19 . 24 60 . 42 209 660 . Explosions 368 | . . . . . . . . . . . . . 61 . . . 6 . . . . . . . . . 3 . 13 285 Melee 63 | . . . . . . . . . . . . . . . . . . . . . . . . . . . . . 63 . Knockbacks 62 | . . . . . . 11 . . . . 21 4 6 . 1 . 1 1 . . . . . . . . . 2 15 . Impact . | . . . . . . . . . . . . . . . . . . . . . . . . . . . . . . . Kinetic 58 | . . . . . . 10 . . . . 19 4 6 . 1 . 1 1 . . . . . . . . . 2 14 . Secondary 4 | . . . . . . 1 . . . . 2 . . . . . . . . . . . . . . . . . 1 . Self-Inflicted Damage 193 | . . . . . . . . . . . 32 . 15 . 18 . . . . . . 24 4 . . . 100 . . . Shots 6 | . . . . . . . . . . . 1 . 1 . 1 . . . . . . 2 . . . . 1 . . . Rammed 1 | . . . . . . . . . . . . . . . . . . . . . . . 1 . . . . . . . Targets Rammed 1 | . . . . . . . . . . . . . . . . . . . . . . . 1 . . . . . . . Kicked . | . . . . . . . . . . . . . . . . . . . . . . . . . . . . . . . Crushed . | . . . . . . . . . . . . . . . . . . . . . . . . . . . . . . . Highest Temperature 440 | . . . . . . 158 88 176 . . 414 96 75 . 235 118 3 90 168 408 . 361 402 335 319 255 408 51 440 250 Average Temperature 105 | . . . . . . 71 45 90 . . 82 37 36 . 119 60 2 38 93 159 . 117 106 100 117 98 111 27 130 81 Received Heat Transfer 1635 | . 126 66 . . 126 27 . . . . 312 30 126 18 18 . 66 . . 66 . 75 27 159 78 9 93 8 157 48 Effects 13 | . . . . . . . . . . . . . . . . . . . . . . . 2 . 1 . 3 . 7 . Shutdowns 3 | . . . . . . . . . . . . . . . . . . . . . . . . . . . 1 . 2 . Energy Bleed 3 | . . . . . . . . . . . . . . . . . . . . . . . 1 . 1 . . . 1 . Interference 5 | . . . . . . . . . . . . . . . . . . . . . . . 1 . . . 2 . 2 . Matter Decay 1 | . . . . . . . . . . . . . . . . . . . . . . . . . . . . . 1 . Short Circuit 1 | . . . . . . . . . . . . . . . . . . . . . . . . . . . . . 1 . Siege Activations . | . . . . . . . . . . . . . . . . . . . . . . . . . . . . . . . Robots Corrupted 46 | . . . . . . . . . . . . . 1 . . . 2 . . . . 2 3 7 5 2 5 . 14 5 Combat Hostiles 41 | . . . . . . . . . . . . . . . . . 2 . . . . 2 2 7 4 2 4 . 13 5 Parts Fried 87 | . . . . . . . . . . . 1 2 . . . . 2 . . . . 7 10 13 8 5 5 . 21 13 Impact Corruptions 4 | . . . . . . 1 . . . . 1 . . . . . . . . . . . . . . . . . 2 . Robots Melted 3 | . . . . . . . . . . . . . . . . . . . . 1 . . 2 . . . . . . . Combat Hostiles 3 | . . . . . . . . . . . . . . . . . . . . 1 . . 2 . . . . . . . Parts Melted 29 | . . . . . 1 . . . . . . . . . . . 2 . . 2 . . 5 1 . . . . 17 1 Heat Transferred 8110 | . . . . . 703 . . . . . 750 300 150 . . . 150 111 . 775 . 372 1607 . . . 375 . 2299 518 Parts Sabotaged . | . . . . . . . . . . . . . . . . . . . . . . . . . . . . . . . Parts Stolen . | . . . . . . . . . . . . . . . . . . . . . . . . . . . . . . . Parts Stripped . | . . . . . . . . . . . . . . . . . . . . . . . . . . . . . . . Power Chain Reactions 7 | . . . . . . . . . . . 1 1 2 . . . 1 . . . . 1 . . . . . . 1 . Missiles Intercepted . | . . . . . . . . . . . . . . . . . . . . . . . . . . . . . . . Alert | -11 -10 -10 -10 -9 -8 -7 -7 -7 -7 -6 -6 -6 -6 -6 -6 -6 -5 -5 -5 -5 -5 -4 -4 -4 -4 -4 -4 -3 -2 -1 ------- Run | Scr Mat Min Exi Min Mat Fac Low Low Zio Pro Fac Gar Fac Low Low Dat Pro Fac Upp Upp War Pro Fac Ext Cet Arc Hub Res Res Acc Peak Influence 1139 | . 251 69 . . 221 645 . . . . 989 1005 731 . . . . 280 . . . . 187 281 522 402 692 486 1039 1139 Average Influence 320 | . 112 66 . . 115 255 . . . . 358 852 426 . . . . 98 . . . . 67 112 243 351 251 407 401 467 Maximum Alert Level 4 | . 1 . . . 1 2 . . . . 3 3 3 . . . . 1 . . . . . 1 2 2 2 2 3 4 Low Security (%) 49 | . . . . . . . . . . . . . . . . . . . . . . . . . . . . . . . Level 1 12 | . . . . . . . . . . . . . . . . . . . . . . . . . . . . . . . Level 2 29 | . . . . . . . . . . . . . . . . . . . . . . . . . . . . . . . Level 3 7 | . . . . . . . . . . . . . . . . . . . . . . . . . . . . . . . Level 4 . | . . . . . . . . . . . . . . . . . . . . . . . . . . . . . . . Level 5 . | . . . . . . . . . . . . . . . . . . . . . . . . . . . . . . . High Security . | . . . . . . . . . . . . . . . . . . . . . . . . . . . . . . . Max Security . | . . . . . . . . . . . . . . . . . . . . . . . . . . . . . . . Squads Dispatched 75 | . 2 . . . 2 5 . . . . 8 . 9 . . . . 2 . . . . 4 3 1 . 8 3 16 12 Investigation 14 | . . . . . . 2 . . . . 1 . 4 . . . . 1 . . . . 1 1 1 . 1 . 1 1 Extermination 22 | . . . . . . 1 . . . . 2 . 2 . . . . . . . . . 3 . . . 2 . 6 6 Reinforcement 26 | . 2 . . . 2 2 . . . . 2 . 2 . . . . 1 . . . . . 2 . . 4 3 3 3 Assault 7 | . . . . . . . . . . . 3 . 1 . . . . . . . . . . . . . . . 1 2 Garrison 6 | . . . . . . . . . . . . . . . . . . . . . . . . . . . 1 . 5 . Intercept . | . . . . . . . . . . . . . . . . . . . . . . . . . . . . . . . Construction Impeded 5 | . . . . . . 1 . . . . 1 . 1 . . . . . . . . . . . . . 1 . . 1 Haulers Reinforced 2 | . . . . . . . . . . . . . . . . . . . . . . . . . . . . . 2 . Stealth | -11 -10 -10 -10 -9 -8 -7 -7 -7 -7 -6 -6 -6 -6 -6 -6 -6 -5 -5 -5 -5 -5 -4 -4 -4 -4 -4 -4 -3 -2 -1 --------- Run | Scr Mat Min Exi Min Mat Fac Low Low Zio Pro Fac Gar Fac Low Low Dat Pro Fac Upp Upp War Pro Fac Ext Cet Arc Hub Res Res Acc Distress Signals 32 | . 1 . . . 5 . . . . . 1 . . . . . . . . . . . 3 2 2 . 3 5 3 7 Communications Jammed 78 | . . . . . . . . . . . . . . . . . . . . . . . 44 . . . 11 . 2 21 Distress Signals 78 | . . . . . . . . . . . . . . . . . . . . . . . 44 . . . 11 . 2 21 Times Spotted 421 | . 12 2 . . 14 19 . 1 . . 46 10 21 2 16 . 9 5 . 5 2 14 23 35 28 10 27 9 63 48 Peak Tracking Total 17 | . 4 2 . . 3 4 . 1 . . 5 4 7 1 7 . 5 2 . 4 2 5 5 6 8 2 17 4 8 5 Tactical Retreats 25 | . . . . . 2 2 . . . . . 2 . . . . 1 . . 1 . 2 4 3 . 1 . 1 5 1 Traps | -11 -10 -10 -10 -9 -8 -7 -7 -7 -7 -6 -6 -6 -6 -6 -6 -6 -5 -5 -5 -5 -5 -4 -4 -4 -4 -4 -4 -3 -2 -1 ------- Run | Scr Mat Min Exi Min Mat Fac Low Low Zio Pro Fac Gar Fac Low Low Dat Pro Fac Upp Upp War Pro Fac Ext Cet Arc Hub Res Res Acc Traps Triggered 18 | . 1 . . . . . . . . . . 4 . . . . . . . . . . 7 3 . . 1 . 1 1 Indirectly 1 | . . . . . . . . . . . . 1 . . . . . . . . . . . . . . . . . . Trap Hack Attempts . | . . . . . . . . . . . . . . . . . . . . . . . . . . . . . . . Triggered . | . . . . . . . . . . . . . . . . . . . . . . . . . . . . . . . Disarmed . | . . . . . . . . . . . . . . . . . . . . . . . . . . . . . . . Reprogrammed . | . . . . . . . . . . . . . . . . . . . . . . . . . . . . . . . Reused . | . . . . . . . . . . . . . . . . . . . . . . . . . . . . . . . Traps Extracted . | . . . . . . . . . . . . . . . . . . . . . . . . . . . . . . . Installed . | . . . . . . . . . . . . . . . . . . . . . . . . . . . . . . . Triggered 11 | . . . . . . . 4 . . . . . . . . . 4 . . . . 1 . . . . . . . 2 Machines | -11 -10 -10 -10 -9 -8 -7 -7 -7 -7 -6 -6 -6 -6 -6 -6 -6 -5 -5 -5 -5 -5 -4 -4 -4 -4 -4 -4 -3 -2 -1 ---------- Run | Scr Mat Min Exi Min Mat Fac Low Low Zio Pro Fac Gar Fac Low Low Dat Pro Fac Upp Upp War Pro Fac Ext Cet Arc Hub Res Res Acc Machines Disabled 38 | . . . . . . 1 . . . . 2 . 2 1 . . . 4 . 1 . . 2 3 . 3 11 . 6 2 Max in Single Turn 9 | . . . . . . 1 . . . . 1 . 1 1 . . . . . 1 . . 1 1 . 1 9 . 1 . Garrison Access 6 | . . . . . . 1 . . . . . . 1 . . . . 1 . . . . . . . . . . 1 2 Network Hub 1 | . . . . . . . . . . . . . . . . . . . . . . . . . . . 1 . . . Machines Sabotaged . | . . . . . . . . . . . . . . . . . . . . . . . . . . . . . . . Garrisons Compromised . | . . . . . . . . . . . . . . . . . . . . . . . . . . . . . . . Overloaded Fab Kills . | . . . . . . . . . . . . . . . . . . . . . . . . . . . . . . . Fab Network Shutdowns 4 | . . . . . . 1 . . . . 1 . . . . . . . . . . . . . . . . . 1 1 Hacking | -11 -10 -10 -10 -9 -8 -7 -7 -7 -7 -6 -6 -6 -6 -6 -6 -6 -5 -5 -5 -5 -5 -4 -4 -4 -4 -4 -4 -3 -2 -1 --------- Run | Scr Mat Min Exi Min Mat Fac Low Low Zio Pro Fac Gar Fac Low Low Dat Pro Fac Upp Upp War Pro Fac Ext Cet Arc Hub Res Res Acc Machines Accessed 103 | . 1 . 1 . 1 6 . . . . 11 . 9 1 . 4 . 9 . 1 . . 14 6 4 . 5 5 11 14 Terminals 63 | . 1 . . . . 3 . . . . 7 . 5 . . . . 6 . . . . 8 6 4 . 5 2 7 9 Fabricators 12 | . . . . . . 2 . . . . 1 . 3 . . . . 1 . . . . 1 . . . . 2 1 1 Repair Stations 9 | . . . . . . . . . . . 1 . . . . . . . . . . . 4 . . . . 1 2 1 Recycling Units . | . . . . . . . . . . . . . . . . . . . . . . . . . . . . . . . Scanalyzers 4 | . . . . . 1 . . . . . 1 . . . . . . . . . . . 1 . . . . . . 1 Garrison Access 8 | . . . . . . 1 . . . . 1 . 1 . . . . 2 . . . . . . . . . . 1 2 Total Hacks 445 | . 2 . 1 . 7 20 . . . . 30 . 44 1 . 26 . 24 . 1 . . 48 32 16 . 24 30 63 76 Successful 285 | . 2 . 1 . 7 12 . . . . 24 . 31 1 . 26 . 17 . 1 . . 27 12 7 . 11 20 41 45 Failed 156 | . . . . . . 8 . . . . 5 . 12 . . . . 7 . . . . 21 19 9 . 13 10 22 30 Catastrophic 19 | . . . . . . . . . . . . . . . . . . 1 . . . . 4 4 2 . 2 1 2 3 Database Lockouts 4 | . . . . . . . . . . . 1 . 1 . . . . . . . . . . 1 . . . . . 1 Manual 230 | . 1 . 1 . . 7 . . . . 20 . 22 . . . . 9 . . . . 21 32 14 1 16 4 29 53 Terminals 295 | . 2 . . . . 9 . . . . 21 . 27 . . . . 17 . . . . 29 32 16 . 24 11 41 66 Fabricators 52 | . . . . . . 9 . . . . 4 . 15 . . . . 3 . . . . 3 . . . . 5 8 5 Repair Stations 44 | . . . . . . . . . . . 2 . . . . . . . . . . . 14 . . . . 14 12 2 Recycling Units . | . . . . . . . . . . . . . . . . . . . . . . . . . . . . . . . Scanalyzers 12 | . . . . . 7 . . . . . 2 . . . . . . . . . . . 2 . . . . . . 1 Garrison Access 13 | . . . . . . 2 . . . . 1 . 2 . . . . 4 . . . . . . . . . . 2 2 Terminal Hacks 139 | . 2 . 1 . . 4 . . . . 9 . 12 1 . 26 . 6 . 1 . . 9 9 5 . 8 3 13 30 Record 11 | . . . . . . . . . . . . . . . . 11 . . . . . . . . . . . . . . Part Schematic 23 | . . . . . . 2 . . . . 4 . . . . 7 . 1 . . . . 3 . . . 1 . 2 3 Robot Schematic 5 | . . . . . . . . . . . . . . . . 5 . . . . . . . . . . . . . . Robot Analysis 8 | . . . . . . . . . . . . . 1 . . . . . . . . . . 3 . . . . . 4 Prototype ID Bank 9 | . . . . . . . . . . . . . 1 . . 3 . . . . . . . . . . . 1 2 2 Open Door 4 | . . . . . . . . . . . . . . 1 . . . . . 1 . . . . 1 . . . . 1 Level Access Points 4 | . . . . . . . . . . . 1 . . . . . . . . . . . 1 . . . . 1 . 1 Branch Access Points 5 | . 1 . . . . 1 . . . . . . 1 . . . . 1 . . . . . . . . . . 1 . Emergency Access Points 1 | . . . . . . . . . . . . . . . . . . . . . . . . . . . 1 . . . Machine Index 1 | . . . . . . . . . . . . . . . . . . . . . . . . . . . . . 1 . Terminal Index 5 | . . . . . . . . . . . . . 1 . . . . 1 . . . . 1 1 . . . . . 1 Fabricator Index 4 | . . . . . . 1 . . . . . . 1 . . . . . . . . . . . . . . 1 . 1 Alert Level 1 | . . . . . . . . . . . 1 . . . . . . . . . . . . . . . . . . . Unreport Threat 26 | . . . . . . . . . . . 1 . 4 . . . . . . . . . 2 4 3 . 1 . 3 8 Locate Traps 2 | . . . . . . . . . . . . . . . . . . 1 . . . . 1 . . . . . . . Dispatch Records 4 | . . . . . . . . . . . . . . . . . . . . . . . . 1 . . 1 . . 2 Transport Status 1 | . . . . . . . . . . . . . . . . . . . . . . . . . . . . . 1 . Recall Investigation 5 | . . . . . . . . . . . 1 . 1 . . . . . . . . . . . 1 . 1 . . 1 Recall Extermination 2 | . . . . . . . . . . . . . . . . . . . . . . . 1 . . . . . . 1 Recall Reinforcements 6 | . . . . . . . . . . . 1 . 1 . . . . . . . . . . . . . 2 . . 2 Recall Assault 2 | . . . . . . . . . . . . . . . . . . . . . . . . . . . . . . 2 Hauler Manifests 5 | . . . . . . . . . . . . . 1 . . . . 1 . . . . . . . . 1 . 1 1 Registered Components 3 | . 1 . . . . . . . . . . . . . . . . 1 . . . . . . . . . . 1 . Registered Prototypes 1 | . . . . . . . . . . . . . . . . . . . . . . . . . . . . . 1 . EX-Prototype ID Bank 1 | . . . 1 . . . . . . . . . . . . . . . . . . . . . . . . . . . Fabricator Hacks 36 | . . . . . . 5 . . . . 2 . 11 . . . . 2 . . . . 2 . . . . 3 7 4 Network Status 6 | . . . . . . . . . . . 1 . 4 . . . . . . . . . . . . . . 1 . . Load Schematic 13 | . . . . . . 2 . . . . . . 3 . . . . 1 . . . . 1 . . . . 1 3 2 Build 17 | . . . . . . 3 . . . . 1 . 4 . . . . 1 . . . . 1 . . . . 1 4 2 Repair Station Hacks 37 | . . . . . . . . . . . 2 . . . . . . . . . . . 11 . . . . 12 10 2 Scan Component 19 | . . . . . . . . . . . 1 . . . . . . . . . . . 6 . . . . 6 5 1 Repair 18 | . . . . . . . . . . . 1 . . . . . . . . . . . 5 . . . . 6 5 1 Recycling Unit Hacks . | . . . . . . . . . . . . . . . . . . . . . . . . . . . . . . . Scanalyzer 10 | . . . . . 7 . . . . . 2 . . . . . . . . . . . . . . . . . . 1 Insert Component 5 | . . . . . 3 . . . . . 1 . . . . . . . . . . . . . . . . . . 1 Analyze 5 | . . . . . 4 . . . . . 1 . . . . . . . . . . . . . . . . . . . Garrison Access Hacks 11 | . . . . . . 1 . . . . 1 . 2 . . . . 3 . . . . . . . . . . 2 2 Unlock Access 1 | . . . . . . . . . . . 1 . . . . . . . . . . . . . . . . . . . Seal Access 6 | . . . . . . 1 . . . . . . 1 . . . . 1 . . . . . . . . . . 1 2 Coupler Status 4 | . . . . . . . . . . . . . 1 . . . . 2 . . . . . . . . . . 1 . Unauthorized Hacks 126 | . . . . . . 6 . . . . 18 . 12 . . . . 14 . . . . 16 6 4 . 13 5 20 12 Terminals 44 | . . . . . . 2 . . . . 6 . 3 . . . . 4 . . . . 4 3 2 . 3 2 9 6 Track 1 | . . . . . . . . . . . . . . . . . . . . . . . . . . . . . . 1 Assimilate 6 | . . . . . . . . . . . 2 . . . . . . . . . . . . . . . 1 . 2 1 Botnet 28 | . . . . . . 2 . . . . 2 . 2 . . . . 3 . . . . 3 3 2 . 1 2 5 3 Disrupt 4 | . . . . . . . . . . . 1 . . . . . . . . . . . . . . . 1 . 1 1 Operators 5 | . . . . . . . . . . . 1 . 1 . . . . 1 . . . . 1 . . . . . 1 . Fabricators 7 | . . . . . . . . . . . 2 . 3 . . . . 1 . . . . 1 . . . . . . . Report 2 | . . . . . . . . . . . 1 . 1 . . . . . . . . . . . . . . . . . Siphon 5 | . . . . . . . . . . . 1 . 2 . . . . 1 . . . . 1 . . . . . . . Repair Stations . | . . . . . . . . . . . . . . . . . . . . . . . . . . . . . . . Recycling Units . | . . . . . . . . . . . . . . . . . . . . . . . . . . . . . . . Scanalyzers . | . . . . . . . . . . . . . . . . . . . . . . . . . . . . . . . Garrison Access 1 | . . . . . . . . . . . . . . . . . . 1 . . . . . . . . . . . . Eject 1 | . . . . . . . . . . . . . . . . . . 1 . . . . . . . . . . . . Data Cores Recovered . | . . . . . . . . . . . . . . . . . . . . . . . . . . . . . . . Used . | . . . . . . . . . . . . . . . . . . . . . . . . . . . . . . . Hacking Detections 84 | . . . . . . 6 . . . . 10 . 8 . . . . 7 . . . . 14 6 4 . 5 5 7 12 Full Trace Events 8 | . . . . . . 2 . . . . . . 2 . . . . . . . . . 1 . 1 . 1 . 1 . Feedback Events 4 | . . . . . . . . . . . . . 2 . . . . . . . . . . . . . 1 . 1 . Corruption 1 | . . . . . . . . . . . . . 1 . . . . . . . . . . . . . . . . . Hackware Fried 3 | . . . . . . . . . . . . . 1 . . . . . . . . . . . . . 1 . 1 . Feedback Blocked . | . . . . . . . . . . . . . . . . . . . . . . . . . . . . . . . Robot Schematics Acquired 5 | . . . . . . . . . . . . . . . . 5 . . . . . . . . . . . . . . Robots Built . | . . . . . . . . . . . . . . . . . . . . . . . . . . . . . . . Matter . | . . . . . . . . . . . . . . . . . . . . . . . . . . . . . . . Time . | . . . . . . . . . . . . . . . . . . . . . . . . . . . . . . . Total Robot Build Rating . | . . . . . . . . . . . . . . . . . . . . . . . . . . . . . . . Part Schematics Acquired 27 | . . . . . 3 2 . . . . 5 . . . . 7 . 1 . . . . 3 . . . 1 . 2 3 Parts Built 18 | . . . . . . 3 . . . . 2 . 3 . . . . 1 . . . . 2 . . . . 1 4 2 Matter 3859 | . . . . . . 438 . . . . 192 . 711 . . . . 213 . . . . 159 . . . . 285 1027 834 Time 1262 | . . . . . . 108 . . . . 128 . 380 . . . . 76 . . . . 106 . . . . 50 266 148 Total Part Build Rating 103 | . . . . . . 9 . . . . 16 . 15 . . . . 5 . . . . 12 . . . . 5 23 18 Parts Repaired 18 | . . . . . . . . . . . 1 . . . . . . . . . . . 5 . . . . 6 5 1 Time 704 | . . . . . . . . . . . 16 . . . . . . . . . . . 252 . . . . 200 218 18 Parts Recycled . | . . . . . . . . . . . . . . . . . . . . . . . . . . . . . . . Recycled Matter . | . . . . . . . . . . . . . . . . . . . . . . . . . . . . . . . Retrieved Matter . | . . . . . . . . . . . . . . . . . . . . . . . . . . . . . . . Retrieved Components . | . . . . . . . . . . . . . . . . . . . . . . . . . . . . . . . Parts Scanalyzed 4 | . . . . . 3 . . . . . 1 . . . . . . . . . . . . . . . . . . . Part Schematics Acquired 4 | . . . . . 3 . . . . . 1 . . . . . . . . . . . . . . . . . . . Parts Damaged . | . . . . . . . . . . . . . . . . . . . . . . . . . . . . . . . Bothacking | -11 -10 -10 -10 -9 -8 -7 -7 -7 -7 -6 -6 -6 -6 -6 -6 -6 -5 -5 -5 -5 -5 -4 -4 -4 -4 -4 -4 -3 -2 -1 ------------ Run | Scr Mat Min Exi Min Mat Fac Low Low Zio Pro Fac Gar Fac Low Low Dat Pro Fac Upp Upp War Pro Fac Ext Cet Arc Hub Res Res Acc Used RIF Installer 1 | . . . . . . . . . . . . 1 . . . . . . . . . . . . . . . . . . Robots Hacked 12 | . . . . . . . . . . . . . . . . . . 3 . . . . . . . . . 1 1 7 Non-combat 3 | . . . . . . . . . . . . . . . . . . 1 . . . . . . . . . 1 1 . Combat 9 | . . . . . . . . . . . . . . . . . . 2 . . . . . . . . . . . 7 Robot Hacks Applied 12 | . . . . . . . . . . . . . . . . . . 3 . . . . . . . . . 1 1 7 ignore_parts 1 | . . . . . . . . . . . . . . . . . . 1 . . . . . . . . . . . . reboot_system 1 | . . . . . . . . . . . . . . . . . . . . . . . . . . . . . . 1 formatsys_low 2 | . . . . . . . . . . . . . . . . . . . . . . . . . . . . 1 1 . formatsys_high 8 | . . . . . . . . . . . . . . . . . . 2 . . . . . . . . . . . 6 Relay Couplers Released 7 | . . . . . . . . . . . . . . . . . . 7 . . . . . . . . . . . . Ejected 3 | . . . . . . . . . . . . . . . . . . 3 . . . . . . . . . . . . Programmers 4 | . . . . . . . . . . . . . . . . . . 4 . . . . . . . . . . . . Attached 3 | . . . . . . . . . . . . . . . . . . 1 . . . . . . . . . 1 . 1 Robots Rewired 28 | . . . . . . . . . . . . . . 3 2 . . . . . . . . 22 . . . . 1 . Allies Hacked 3 | . . . . . . . . . . . 1 . . . . . . . . . . . . . . . . . 1 1 Hacks Repelled . | . . . . . . . . . . . . . . . . . . . . . . . . . . . . . . . Allies | -11 -10 -10 -10 -9 -8 -7 -7 -7 -7 -6 -6 -6 -6 -6 -6 -6 -5 -5 -5 -5 -5 -4 -4 -4 -4 -4 -4 -3 -2 -1 -------- Run | Scr Mat Min Exi Min Mat Fac Low Low Zio Pro Fac Gar Fac Low Low Dat Pro Fac Upp Upp War Pro Fac Ext Cet Arc Hub Res Res Acc Total Allies 60 | . . 1 . . . . . . . . 1 . . 3 2 . 1 2 . . . . . 32 5 . 1 1 3 8 Largest Group 18 | . . 1 1 . . . . . . . 1 . . 3 5 5 5 2 . . . . . 18 11 5 5 2 2 5 Highest-Rated Group 822 | . . 31 31 . . . . . . . 26 . . 93 154 154 178 102 . . . . . 822 752 525 386 29 90 429 Highest-Rated Ally 156 | . . 31 31 . . . . . . . 26 . . 31 32 32 94 94 . . . . . 156 156 149 94 20 58 90 Total Orders 72 | . . . . . . . . . . . 10 . 1 . 3 . . . . . . . . 1 1 . 18 15 8 15 STAY 15 | . . . . . . . . . . . 1 . . . . . . . . . . . . . . . 5 4 1 4 GOTO 27 | . . . . . . . . . . . 4 . . . 2 . . . . . . . . 1 1 . 6 4 4 5 FOLLOW 24 | . . . . . . . . . . . 5 . . . 1 . . . . . . . . . . . 7 4 1 6 AID 5 | . . . . . . . . . . . . . . . . . . . . . . . . . . . . 3 2 . EXPLORE 1 | . . . . . . . . . . . . . 1 . . . . . . . . . . . . . . . . . Ally Attacks 485 | . . . . . . . . . . . . . . 12 62 . 37 20 . . . . . 117 115 8 35 . 16 63 Total Damage 13839 | . . . . . . . . . . . . . . 169 1250 . 1035 1019 . . . . . 3091 3394 232 1302 . 583 1764 Kills 89 | . . . . . . . . . . . . . . 1 11 . 7 7 . . . . . 18 16 2 8 . 2 17 Allies Corrupted 2 | . . . . . . . . . . . . . 1 . . . . . . . . . . . 1 . . . . . Allies Melted . | . . . . . . . . . . . . . . . . . . . . . . . . . . . . . . . Intel | -11 -10 -10 -10 -9 -8 -7 -7 -7 -7 -6 -6 -6 -6 -6 -6 -6 -5 -5 -5 -5 -5 -4 -4 -4 -4 -4 -4 -3 -2 -1 ------- Run | Scr Mat Min Exi Min Mat Fac Low Low Zio Pro Fac Gar Fac Low Low Dat Pro Fac Upp Upp War Pro Fac Ext Cet Arc Hub Res Res Acc Robot Analysis Total 8 | . . . . . . . . . . . . . 1 . . . . . . . . . . 3 . . . . . 4 Derelict Logs Recovered 17 | . . 1 . . . . 1 2 2 2 . . . 1 1 . 3 . 1 2 . 1 . . . . . . . . Drone Launches 9 | . . . 1 . . . . . . . . . 8 . . . . . . . . . . . . . . . . . Drone Recoveries . | . . . . . . . . . . . . . . . . . . . . . . . . . . . . . . . Exploration | -11 -10 -10 -10 -9 -8 -7 -7 -7 -7 -6 -6 -6 -6 -6 -6 -6 -5 -5 -5 -5 -5 -4 -4 -4 -4 -4 -4 -3 -2 -1 ------------- Run | Scr Mat Min Exi Min Mat Fac Low Low Zio Pro Fac Gar Fac Low Low Dat Pro Fac Upp Upp War Pro Fac Ext Cet Arc Hub Res Res Acc Turns Passed 23625 | 49 409 317 436 50 348 1261 379 319 886 341 1465 544 1253 475 397 141 434 796 290 579 127 553 1877 973 473 228 895 878 3259 3193 Spaces Moved 13857 | 44 301 324 446 47 197 847 308 263 712 261 931 345 827 350 298 109 186 483 238 409 98 360 834 439 228 123 412 436 1411 1590 Core 3 | 3 . . . . . . . . . . . . . . . . . . . . . . . . . . . . . . Treads . | . . . . . . . . . . . . . . . . . . . . . . . . . . . . . . . Legs . | . . . . . . . . . . . . . . . . . . . . . . . . . . . . . . . Wheels 13854 | 41 301 324 446 47 197 847 308 263 712 261 931 345 827 350 298 109 186 483 238 409 98 360 834 439 228 123 412 436 1411 1590 Hover . | . . . . . . . . . . . . . . . . . . . . . . . . . . . . . . . Flight . | . . . . . . . . . . . . . . . . . . . . . . . . . . . . . . . Fastest Speed 50 | 50 90 90 90 100 100 120 120 120 120 130 120 120 120 120 120 120 120 120 120 120 130 120 120 130 130 140 140 130 130 140 Average Speed 129 | 88 90 90 95 100 111 134 120 120 122 130 122 125 123 121 120 120 120 126 120 125 130 128 132 134 139 141 140 145 146 148 Slowest Speed 160 | 100 90 90 100 100 120 140 140 120 130 130 140 140 130 130 120 120 120 130 120 130 130 130 140 140 140 150 140 160 160 160 Overloaded Moves . | . . . . . . . . . . . . . . . . . . . . . . . . . . . . . . . Propulsion Burnouts . | . . . . . . . . . . . . . . . . . . . . . . . . . . . . . . . Robots Hopped . | . . . . . . . . . . . . . . . . . . . . . . . . . . . . . . . Cave-ins Triggered . | . . . . . . . . . . . . . . . . . . . . . . . . . . . . . . . Exploration Rate (%) 44 | 3 58 65 67 10 42 16 53 56 83 45 26 64 37 52 51 73 30 12 44 59 19 49 25 56 78 73 45 14 24 42 Regions Visited 30 Branch Regions 19 Pre-discovered Areas 3 | . . . . . . . . . 1 1 . . . . . 1 . . . . . . . . . . . . . . Known Exits Taken 9 | . 1 . . . . 1 . . . . 1 . 1 . . . 1 1 . 1 . . . . . . 1 1 . . Unknown Exits Taken 20 | 1 . 1 1 1 1 . 1 1 1 1 . . . 1 1 1 . . 1 . 1 1 1 1 1 1 . . 1 . Scrap Searched 21 | . . 1 . . . . 2 1 3 3 . . . 3 . . 1 . 2 3 . 2 . . . . . . . . Spaces Dug 113 | . . . . . . . . . . . 2 . 8 . . . . 5 . 3 . 3 22 15 . . 5 . 17 33 Terrain Destroyed 595 | . . . . . . 15 1 1 . . 26 5 25 2 45 . 3 7 . 3 . 18 30 17 . 1 178 9 76 133 Melee 44 | . . . . . . . . . . . . . . . . . . . . . . . . 15 . . . . 5 24 Projectile 201 | . . . . . . 15 1 1 . . 21 2 15 2 2 . 1 7 . 3 . 14 30 2 . 1 11 9 51 13 AOE 350 | . . . . . . . . . . . 5 3 10 . 43 . 2 . . . . 4 . . . . 167 . 20 96 Actions | -11 -10 -10 -10 -9 -8 -7 -7 -7 -7 -6 -6 -6 -6 -6 -6 -6 -5 -5 -5 -5 -5 -4 -4 -4 -4 -4 -4 -3 -2 -1 --------- Run | Scr Mat Min Exi Min Mat Fac Low Low Zio Pro Fac Gar Fac Low Low Dat Pro Fac Upp Upp War Pro Fac Ext Cet Arc Hub Res Res Acc Total 18798 | 51 384 340 454 50 283 956 315 264 724 264 1190 429 1007 391 325 119 385 651 243 450 97 421 1514 748 383 164 707 672 2533 2284 Wait 2937 | . 41 7 . 4 23 61 . . 1 . 150 18 103 13 9 5 187 122 . 4 . 22 473 74 72 11 179 188 688 482 Move 13827 | 43 300 323 445 46 196 846 307 262 711 260 931 344 826 349 297 108 185 482 237 408 97 359 833 438 227 122 411 435 1410 1589 Hop . | . . . . . . . . . . . . . . . . . . . . . . . . . . . . . . . Pick Up 207 | 2 8 1 5 . 14 10 2 . 7 2 8 4 9 2 2 . . 10 2 5 . 4 19 9 5 3 4 12 49 9 Fast Attach 89 | 6 3 . . . . 3 . . . . 9 . 4 1 . 3 1 2 . 3 . 1 5 10 8 . 2 5 19 4 Attach 133 | . 2 . . . 6 5 3 . . . 16 6 5 . . . 2 3 1 8 . 3 11 4 1 . 14 12 23 8 Detach 82 | . . . . . . 5 . . . . 14 1 7 . . . . 1 1 2 . . 7 . 4 . 11 7 18 4 Swap 176 | . . 1 2 . 2 . . . 1 . 2 . 5 2 . . . 7 1 3 . 1 25 11 9 2 13 1 53 35 Drop 168 | . 2 2 1 . 5 10 2 . 4 2 18 3 3 1 3 3 . 6 1 6 . 5 8 15 12 2 6 2 39 7 Fire 920 | . 28 6 . . 37 16 1 2 . . 42 29 41 9 11 . 10 18 . 11 . 26 100 58 45 24 67 10 225 104 Melee 65 | . . . . . . . . . . . . . . . . . . . . . . . . 15 . . . . 9 41 Ram 1 | . . . . . . . . . . . . . . . . . . . . . . . 1 . . . . . . . Kick . | . . . . . . . . . . . . . . . . . . . . . . . . . . . . . . . Crush . | . . . . . . . . . . . . . . . . . . . . . . . . . . . . . . . Escape Stasis 78 | . . . . . . . . . . . . 24 . . . . . . . . . . 32 22 . . . . . . Rewire 110 | . . . . . . . . . . . . . . 14 3 . . . . . . . . 92 . . . . . 1 Trap . | . . . . . . . . . . . . . . . . . . . . . . . . . . . . . . . Miscellaneous 5 | . . . 1 . . . . . . . . . 4 . . . . . . . . . . . . . . . . . Route ------- -11/Scrapyard -10/Materials (discovered 3 exits: [*Mat] / *Min x2) -10/Mines -10/Exiles (discovered 2 exits: [*Min x2]) -9/Mines -8/Materials -7/Factory (discovered 3 exits: *Fac / *Low x2) -7/Lower Caves -7/Lower Caves (discovered 2 exits: *Fac / [*Zio]) -7/Zion -6/Proximity Caves -6/Factory (discovered 5 exits: Fac x4 / Gar) -6/Garrison (discovered 3 exits: *Fac x3) -6/Factory (discovered 3 exits: *Fac / *Low x2) -6/Lower Caves -6/Lower Caves (discovered 2 exits: *Fac / *Dat) -6/Data Miner -5/Proximity Caves -5/Factory (discovered 2 exits: *Upp x2) -5/Upper Caves -5/Upper Caves (discovered 2 exits: *Fac / *War) -5/Warlord -4/Proximity Caves -4/Factory (discovered 7 exits: Res x4 / *Upp / *Ext / Arm) -4/Extension (discovered 2 exits: *Res / *Cet) -4/Cetus (discovered 2 exits: *Res / *Arc) -4/Archives (discovered 2 exits: *Hub x2) -4/Hub_04(d) (discovered 3 exits: *Res x3) -3/Research (discovered 3 exits: *Res x3) -2/Research (discovered 3 exits: *Acc / Qua x2) -1/Access (discovered 2 exits: *Sur / [*Com]) To Epsilon Eridani History --------- Turn | Location | Event 7 | -11/Scrapyard | Discovered new exit (range 15) 50 | -11/Scrapyard | Entered Materials 229 | -10/Materials | Identified exit to Mines 318 | -10/Materials | Build established: Mutant 385 | -10/Materials | Discovered new exit (range 4) 459 | -10/Materials | Entered Mines 480 | -10/Mines | Core integrity fell below 50% 545 | -10/Mines | Learned 2 Materials zone layouts 549 | -10/Mines | Received a Mining Laser from a helpful Derelict 598 | -10/Mines | Assembled infested the area 759 | -10/Mines | Discovered new exit (range 5) 776 | -10/Mines | Entered Exiles 776 | -10/Exiles | Accompanied by 1 ally 790 | -10/Exiles | Discovered new exit (range 15) 801 | -10/Exiles | Met 8R-AWN 814 | -10/Exiles | Met EX-HEX 868 | -10/Exiles | Met EX-BIN 906 | -10/Exiles | Met EX-DEC 1035 | -10/Exiles | Aligned with FarCom system 1036 | -10/Exiles | Given EX-Vault access code 1074 | -10/Exiles | Opened EX-Vault 1110 | -10/Exiles | Found AWS/Autocannon 1132 | -10/Exiles | Warned to stay clear of 0b10 Research branches 1200 | -10/Exiles | Discovered new exit (range 13) 1212 | -10/Exiles | Left Exiles lab with AWS/Autocannon 1212 | -10/Exiles | Entered Mines 1212 | -9/Mines | Accompanied by 1 ally 1257 | -9/Mines | Discovered new exit (range 3) 1262 | -9/Mines | Entered Materials 1262 | -8/Materials | Accompanied by 1 ally 1262 | -8/Materials | Evolved 4 slots: Utility x4 1591 | -8/Materials | Discovered new exit (range 7) 1610 | -8/Materials | Entered Factory 1610 | -7/Factory | Evolved 2 slots: Utility x1, Weapon x1 1662 | -7/Factory | Build established: Hauler-Mutant 1883 | -7/Factory | Discovered new exit (range 14) 1913 | -7/Factory | Identified exit to Lower Caves 1994 | -7/Factory | Build established: Hauler-Skirmisher 2305 | -7/Factory | Fabricated Hacking Suite? 2408 | -7/Factory | Fabricated Hacking Suite? 2477 | -7/Factory | Fabricated Hacking Suite? 2505 | -7/Factory | Local fabrication network quarantined 2871 | -7/Factory | Entered Lower Caves 2916 | -7/Lower Caves | Learned Factory terminal intel 3172 | -7/Lower Caves | Build established: Hauler-Gunner 3227 | -7/Lower Caves | Discovered new exit (range 17) 3250 | -7/Lower Caves | Entered another Lower Caves area 3261 | -7/Lower Caves | Discovered new exit (range 3) 3273 | -7/Lower Caves | Attracted the attention of an 0b10 checkpoint 3327 | -7/Lower Caves | Learned Factory stockpile data 3483 | -7/Lower Caves | Learned Factory emergency access door positions 3560 | -7/Lower Caves | Discovered new exit (range 9) 3569 | -7/Lower Caves | Entered Zion 3585 | -7/Zion | Given A8's code to call for help 3656 | -7/Zion | Discovered new exit (range 14) 3761 | -7/Zion | Learned Factory scanalyzer intel 3976 | -7/Zion | Learned Factory interactive machine intel 4094 | -7/Zion | Learned Factory terminal intel 4122 | -7/Zion | Learned location of Data Miner (-6) 4179 | -7/Zion | Found Prototype Energy Gun 4304 | -7/Zion | Found Relay Coupler [Programmer] 4314 | -7/Zion | Found Relay Coupler [Programmer] 4455 | -7/Zion | Entered Proximity Caves 4780 | -6/Proximity Caves | Discovered new exit (range 12) 4795 | -6/Proximity Caves | Learned Factory trap positions 4796 | -6/Proximity Caves | Entered Factory 4796 | -6/Factory | Evolved 2 slots: Utility x2 4797 | -6/Factory | Loaded intel: 112 trap records 4800 | -6/Factory | Loaded intel: 46 interactive machine locations 4801 | -6/Factory | Loaded intel: 20 terminal locations 4802 | -6/Factory | Loaded intel: 4 scanalyzer locations 5009 | -6/Factory | Identified exit to Factory 5136 | -6/Factory | Build established: Hacker-Skirmisher 5387 | -6/Factory | Central database locked down 5490 | -6/Factory | Local fabrication network quarantined 5496 | -6/Factory | First assault squad dispatched 5572 | -6/Factory | Fabricated Adv. Force Field (x2) 5687 | -6/Factory | Repaired Proton Cannon 5981 | -6/Factory | Destroyed 10 combat bots 6261 | -6/Factory | Identified exit to Garrison 6261 | -6/Factory | Entered Garrison 6280 | -6/Garrison | Triggered checkpoint 6383 | -6/Garrison | Spotted B-75 Beast 6394 | -6/Garrison | Destroyed B-75 Beast 6404 | -6/Garrison | Triggered checkpoint 6506 | -6/Garrison | Triggered checkpoint 6540 | -6/Garrison | Discovered new exit (range 18) 6620 | -6/Garrison | Triggered checkpoint 6691 | -6/Garrison | Discovered new exit (range 9) 6706 | -6/Garrison | Build established: Hacker-Mutant 6775 | -6/Garrison | Discovered new exit (range 13) 6801 | -6/Garrison | Installed Relay Interface Framework 6805 | -6/Garrison | Entered Factory 6806 | -6/Factory | Loaded intel: 18 terminal locations 6927 | -6/Factory | Imp. Hacking Suite fried by hacking feedback 7135 | -6/Factory | Discovered new exit (range 22) 7155 | -6/Factory | First assault squad dispatched 7203 | -6/Factory | Found Exp. Terrain Scan Processor 7344 | -6/Factory | Discovered exit to Factory (range 41) 7419 | -6/Factory | Identified exit to Lower Caves 7493 | -6/Factory | Discovered exit to Lower Caves (range 89) 7500 | -6/Factory | Found Prototype Launcher 7500 | -6/Factory | Identified Rocket Array 7731 | -6/Factory | Fabricated Exp. Utility Shielding? 7808 | -6/Factory | Fabricated Exp. Propulsion Shielding? 7856 | -6/Factory | Central database locked down 7900 | -6/Factory | Fabricated Exp. Terrain Scanner? 8058 | -6/Factory | Entered Lower Caves 8148 | -6/Lower Caves | Encountered a Warlord checkpoint 8208 | -6/Lower Caves | Learned Factory stockpile data 8231 | -6/Lower Caves | Attacked by a delusional Derelict stockpiling Unaware 8456 | -6/Lower Caves | Discovered new exit (range 27) 8533 | -6/Lower Caves | Entered another Lower Caves area 8533 | -6/Lower Caves | Accompanied by 3 allies 8533 | -6/Lower Caves | Discovered exit to Factory (range 12) 8534 | -6/Lower Caves | Encountered a Warlord checkpoint 8561 | -6/Lower Caves | Attracted the attention of an 0b10 outpost 8668 | -6/Lower Caves | Attacked by a faux Warlord 8729 | -6/Lower Caves | Core integrity fell below 50% 8848 | -6/Lower Caves | Discovered new exit (range 24) 8930 | -6/Lower Caves | Entered Data Miner 8930 | -6/Data Miner | Accompanied by 5 allies 8932 | -6/Data Miner | Discovered new exit (range 6) 8955 | -6/Data Miner | Met Data Miner 8991 | -6/Data Miner | Learned location of Section 7 (-2) 8991 | -6/Data Miner | Acquired the access code to Warlord's prototype stash 9009 | -6/Data Miner | Received God Mode back door access code from Data Miner 9071 | -6/Data Miner | Entered Proximity Caves 9071 | -5/Proximity Caves | Accompanied by 5 allies 9113 | -5/Proximity Caves | Escorted by Enhanced Grunt 9264 | -5/Proximity Caves | Discovered exit to Factory (range 30) 9276 | -5/Proximity Caves | Learned Factory terminal intel 9300 | -5/Proximity Caves | Learned 8 Factory zone layouts 9397 | -5/Proximity Caves | Received a Behemoth hack from an annoying Tinkerer 9505 | -5/Proximity Caves | Entered Factory 9505 | -5/Factory | Accompanied by 1 ally 9505 | -5/Factory | Evolved 2 slots: Utility x1, Weapon x1 9506 | -5/Factory | Identified exit to Upper Caves 9509 | -5/Factory | Loaded intel: 20 terminal locations 9765 | -5/Factory | Fabricated Exp. Propulsion Shielding (x1) 10291 | -5/Factory | Identified Storm Laser 10301 | -5/Factory | Entered Upper Caves 10515 | -5/Upper Caves | Discovered new exit (range 29) 10591 | -5/Upper Caves | Entered another Upper Caves area 10592 | -5/Upper Caves | Build established: Hacker-Skirmisher 10592 | -5/Upper Caves | Identified exit to Warlord 10594 | -5/Upper Caves | Discovered new exit (range 19) 10690 | -5/Upper Caves | Spotted B-75 Beast 10779 | -5/Upper Caves | Attracted the attention of an 0b10 checkpoint 10821 | -5/Upper Caves | Destroyed B-75 Beast 11029 | -5/Upper Caves | Learned Factory emergency access door positions 11084 | -5/Upper Caves | Found Alien Artifact 11084 | -5/Upper Caves | Identified Dimensional Node Initializer 11084 | -5/Upper Caves | Initialized slip node 11167 | -5/Upper Caves | Build established: Hacker-Mutant 11170 | -5/Upper Caves | Entered Warlord 11183 | -5/Warlord | Discovered new exit (range 28) 11216 | -5/Warlord | System corruption cleaned by Quarantine Array 11221 | -5/Warlord | RIF detected upon attempting to enter Warlord's base 11221 | -5/Warlord | Attacked by Warlord forces 11235 | -5/Warlord | Spotted ZH-6HX(B) 11235 | -5/Warlord | Spotted BM-XNS(B) 11297 | -5/Warlord | Entered Proximity Caves 11614 | -4/Proximity Caves | Attracted the attention of an 0b10 checkpoint 11641 | -4/Proximity Caves | Build established: Hacker-Skirmisher 11717 | -4/Proximity Caves | Discovered new exit (range 22) 11850 | -4/Proximity Caves | Entered Factory 11850 | -4/Factory | Evolved 2 slots: Power x1, Utility x1 11851 | -4/Factory | Identified exit to Armory 11854 | -4/Factory | Discovered new exit (range 30) 11869 | -4/Factory | Discovered new exit (range 10) 11932 | -4/Factory | Identified exit to Research 11956 | -4/Factory | Build established: Hacker-Mutant 12005 | -4/Factory | Identified exit to Upper Caves 12413 | -4/Factory | Repaired Exp. Utility Shielding 12494 | -4/Factory | Repaired Exp. Propulsion Shielding? 12580 | -4/Factory | Repaired Imp. Weapon Shielding 13245 | -4/Factory | Repaired Hrd. Heavy Armor Plating 13520 | -4/Factory | Repaired Exp. Propulsion Shielding? 13539 | -4/Factory | System corruption reached 10% 13605 | -4/Factory | Found Quantum Capacitor 13691 | -4/Factory | Fabricated System Restoration Module? 13727 | -4/Factory | Entered Extension 13735 | -4/Extension | Disrupted transfer network 14029 | -4/Extension | Rescued a captive Derelict 14032 | -4/Extension | Rescued a captive Derelict 14045 | -4/Extension | Rescued a captive Derelict 14052 | -4/Extension | Rescued a captive Derelict 14097 | -4/Extension | Rescued a captive Derelict 14162 | -4/Extension | Rescued a captive Derelict 14162 | -4/Extension | Rescued a captive Derelict 14163 | -4/Extension | Central database locked down 14178 | -4/Extension | Incoming investigation squad redirected 14358 | -4/Extension | Rescued a captive Derelict 14359 | -4/Extension | Rescued a captive Derelict 14454 | -4/Extension | Rescued A7 14646 | -4/Extension | Discovered exit to Research (range 10) 14647 | -4/Extension | Discovered new exit (range 6) 14700 | -4/Extension | Entered Cetus 14700 | -4/Cetus | Accompanied by 11 allies 14705 | -4/Cetus | Acquired a Cetus Manufacturing Module code from A7 14719 | -4/Cetus | Spotted Cetus Guard 14719 | -4/Cetus | Spotted Cetus Guard 14722 | -4/Cetus | Spotted Cetus Guard 14722 | -4/Cetus | Spotted Cetus Guard 14724 | -4/Cetus | Destroyed Cetus Guard 14737 | -4/Cetus | Allies destroyed Cetus Guard 14743 | -4/Cetus | Allies destroyed Cetus Guard 14744 | -4/Cetus | Allies destroyed Cetus Guard 14915 | -4/Cetus | Incoming investigation squad redirected 14933 | -4/Cetus | Started Cetus Manufacturing Module 14943 | -4/Cetus | Escorted A7 to Cetus Mainframe 14958 | -4/Cetus | Manufactured an Enhanced Grunt 14966 | -4/Cetus | Discovered new exit (range 15) 14983 | -4/Cetus | Manufactured an Enhanced Grunt 15008 | -4/Cetus | Manufactured an Enhanced Grunt 15033 | -4/Cetus | Manufactured an Enhanced Grunt 15058 | -4/Cetus | Manufactured an Enhanced Grunt 15058 | -4/Cetus | Spotted Cetus Guard 15058 | -4/Cetus | Spotted Cetus Guard 15062 | -4/Cetus | Destroyed Cetus Guard 15062 | -4/Cetus | Spotted Cetus Guard 15063 | -4/Cetus | Spotted Cetus Guard 15063 | -4/Cetus | Allies destroyed Cetus Guard 15068 | -4/Cetus | Allies destroyed Cetus Guard 15075 | -4/Cetus | Destroyed Cetus Guard 15087 | -4/Cetus | Found Prototype Device 15093 | -4/Cetus | Discovered exit to Research (range 16) 15105 | -4/Cetus | Met Revision 17 15173 | -4/Cetus | Entered Archives 15173 | -4/Archives | Accompanied by 5 allies 15178 | -4/Archives | Received a hacking code to weaken MAIN.C 15250 | -4/Archives | Discovered new exit (range 16) 15307 | -4/Archives | Unable to access archive contents 15362 | -4/Archives | Discovered new exit (range 15) 15401 | -4/Archives | Entered Hub_04(d) 15401 | -4/Hub_04(d) | Accompanied by 4 allies 15458 | -4/Hub_04(d) | Identified Exp. Thermal Shield 15536 | -4/Hub_04(d) | Discovered exit to Research (range 27) 15812 | -4/Hub_04(d) | Imp. System Shield fried by hacking feedback 15826 | -4/Hub_04(d) | Discovered exit to Research (range 27) 16196 | -4/Hub_04(d) | Disrupted transfer network 16221 | -4/Hub_04(d) | Discovered exit to Research (range 5) 16289 | -4/Hub_04(d) | Network Hub disabled 16295 | -4/Hub_04(d) | Spotted Lightning 16296 | -4/Hub_04(d) | Entered Research 16296 | -3/Research | Accompanied by 1 ally 16296 | -3/Research | Evolved 2 slots: Utility x2 16394 | -3/Research | Repaired Arm. Huge Wheel 16435 | -3/Research | Repaired Exp. Propulsion Shielding 16477 | -3/Research | Repaired Exp. Utility Shielding 16496 | -3/Research | Revision forces began assault on 0b10 16532 | -3/Research | Repaired Centrium Medium Armor Plating? 16549 | -3/Research | Met up with Revision 17++ 16585 | -3/Research | Repaired Quantum Capacitor 16598 | -3/Research | Repaired Lrg. Storage Unit 16673 | -3/Research | Identified exit to Research 16877 | -3/Research | Fabricated Exp. Propulsion Shielding? 16973 | -3/Research | Build established: Hacker-Skirmisher 16996 | -3/Research | Research terminal network offline 17174 | -3/Research | Entered another Research area 17174 | -2/Research | Evolved 2 slots: Utility x2 17195 | -2/Research | Repaired Lrg. Storage Unit 17230 | -2/Research | Repaired Quantum Reactor 17238 | -2/Research | Garrison activated, responded to threat 17606 | -2/Research | Spotted B-90 Cyclops 17808 | -2/Research | Repaired Exp. Utility Shielding? 18083 | -2/Research | Discovered new exit (range 30) 18337 | -2/Research | Imp. Hacking Suite fried by hacking feedback 18399 | -2/Research | Lost 3 parts (1p1u1w) 18579 | -2/Research | System corruption reached 10% 18644 | -2/Research | Build established: Scavenger-Mutant 19007 | -2/Research | Build established: Hacker-Mutant 19126 | -2/Research | Fabricated Exp. Utility Shielding? 19230 | -2/Research | Fabricated Mni. Smartbomb Launcher? 19309 | -2/Research | Fabricated Imp. Powered Armor (x1) 19363 | -2/Research | Fabricated Imp. Powered Armor (x1) 19371 | -2/Research | Local fabrication network quarantined 19721 | -2/Research | Identified exit to Quarantine 19855 | -2/Research | Repaired Exp. Propulsion Shielding? 19924 | -2/Research | First assault squad dispatched 19952 | -2/Research | Garrison activated, responded to threat 19957 | -2/Research | Repaired Exp. Utility Shielding? 20171 | -2/Research | P-80 Master assimilated allied Artificer 9a 20433 | -2/Research | Entered Access 20433 | -1/Access | Evolved 2 slots: Power x1, Utility x1 21232 | -1/Access | Identified exit to Surface 21683 | -1/Access | First assault squad dispatched 21701 | -1/Access | Incoming assault squad redirected 21785 | -1/Access | Found Prototype Processor 21937 | -1/Access | Master 10d assimilated hostile W-44 Eye 21978 | -1/Access | Build established: Hacker-Assassin 22204 | -1/Access | Incoming assault squad redirected 22220 | -1/Access | Discovered new exit (range 30) 22258 | -1/Access | Identified Exp. Melee Analysis Suite 22310 | -1/Access | Central database locked down 22621 | -1/Access | Repaired Imp. Powered Armor 23034 | -1/Access | Destroyed 10 combat bots 23163 | -1/Access | Fabricated Singularity Reactor? 23226 | -1/Access | Build established: Hacker-Mutant 23243 | -1/Access | Local fabrication network quarantined 23280 | -1/Access | Fabricated Exp. Biometal Medium Treads? 23626 | *** | Escaped! Last Messages --------------- 23485_ K-01 Serf collects debris. 23488_ R-10 Processor collects Myomer Leg. 23489_ K-01 Serf collects debris. 23492_ O-32 Director: "IFF HANDSHAKE FAILED. SECURING TERMINAL." 23507_ PNB=T, 7=LFBD9IQGZUQ>Trojan(Disrupt) Trojan loaded successfully. Testing... Disruption routine running. >>Prototypes Downloading prototype IDs... Enh. Gamma Bomb Array Exp. Armor Integrity Analyzer Exp. Core Analyzer Hdn. Centrium Leg 23525_ U-05 Engineer builds a Wall. 23529_ System corrupted: Component data lost. 23618_ The Access Shell folds into the floor. [Achievement: Mad Max] Map ----- +----------------------------------------------------+ | # # # #?????????????? | | # # "" # ? ? +?????????????? | | " # # "" #? ? #? ???????????? | | """" # # """"""# # ##????????? | | """"" + # """"""# ? # ??????????? | | """"" # # "" # # ?#?????????? | | """" # # "" # # ##????????? | | " # + ########## #??#??????? | | u # ^# ########## ?? ???????? | | # # ###########+###?#??????? | | #####+##### ######+############ ? ???????? | | ############ ? ????????? | | ############ ???????? | | ####+###### ################### ???????? | | # # A################### ?#?????? | | + # k################### ?###???? | | # # ################### ?#?????? | | # # ###############################?????? | | # # ##############################??????? | | #]]! # ####### ######################??????? | | #]]! # """T""" """" #?#?????? | | #]] # A""" """ """" BB ###?????? | | ########### R """" BB ####????? | | ########### """" ? ???? | | """T""" # "" """" ? ?? ???? | | """ """ # @" """" ?????? | | # """" ? ????? | | # """" BB ### ????? | | # """" BB ##??????? | | # """" #?#?????? | | # ####### #######################?????? | | " t # #############################?#?????? | | "" # ##############################??????? | | " # # ############# ??????? | | # # ############# ???????? | | # / !! ############# ??????? | | #######/### # !! ############# ??????? | | # ############# +?????? | | + ############# ? ????? | | ############## ############# # ? ??? | | ###### ############# # ??? | | ###### ############# #?##??? | | "" ####################################### ?? | | """ ######################## ?### ?? | | "R ######################## ### ?? | | """ ######################## ### # | | """ ######################## ###?+? | | ######################## ### #? | | ######################## ### ## | | ################################ ### #? | +----------------------------------------------------+ Best States ------------- Heat Dissipation 68 Coolant Potential 120 Energy Generation 75 Energy Capacity 1100 Matter Stores 300 Matter Capacity 300 Sight Range 22 Terrain Scan Range 30 Terrain Scan Density 1010 Jamming Range 16 Armor Coverage 600 Resistance: KI 30 Resistance: TH 30 Propulsion Shielding 90 Utility Shielding 90 Weapon Shielding 66 Weapon Cycling 30 Evasion (%) 42 Matter Filtering 50 Particle Charging 25 Offensive Hacking 46 Defensive Hacking 26 Item Schematics ----------------- Lrg. Storage Unit | -8/Materials | Scanalyzed Adv. Signal Interpreter | -8/Materials | Scanalyzed Arm. Huge Wheel | -8/Materials | Scanalyzed Hacking Suite | -7/Factory | Hacked System Shield | -7/Factory | Hacked Exp. Utility Shielding | -6/Factory | Hacked Exp. Terrain Scanner | -6/Factory | Hacked Exp. Terrain Scan Processor | -6/Factory | Hacked Exp. Propulsion Shielding | -6/Factory | Hacked Adv. Force Field | -6/Factory | Scanalyzed Combat Drone Bay | -6/Data Miner | Free Lgt. Regenerative Plating | -6/Data Miner | Free Exp. Flexi-carbon Leg | -6/Data Miner | Free Cmb. Gravmag System | -6/Data Miner | Free Tactical Coordination Suite | -6/Data Miner | Free Cloaking Device | -6/Data Miner | Free Plasma Sword | -6/Data Miner | Free Com. HERF Cannon | -5/Factory | Hacked System Restoration Module | -4/Factory | Hacked Imp. Powered Armor | -4/Factory | Hacked Centrium Wheel | -4/Factory | Hacked Adv. Coolant Injector | -4/Hub_04(d) | Hacked Mni. Smartbomb Launcher | -2/Research | Hacked Exp. Weapon Shielding | -2/Research | Hacked Singularity Reactor | -1/Access | Hacked Exp. Biometal Medium Treads | -1/Access | Hacked Gravity Flail | -1/Access | Hacked Robot Schematics ------------------ S-27 Virus | -6/Data Miner | Free G-50 Soldier | -6/Data Miner | Free L-41 Fighter | -6/Data Miner | Free H-66 Slayer | -6/Data Miner | Free I-36 Angel | -6/Data Miner | Free Fabricated ------------ Hacking Suite | x1 | -7/Factory Hacking Suite | x1 | -7/Factory Hacking Suite | x1 | -7/Factory Adv. Force Field | x2 | -6/Factory | Preloaded Exp. Utility Shielding | x1 | -6/Factory Exp. Propulsion Shielding | x1 | -6/Factory Exp. Terrain Scanner | x1 | -6/Factory Exp. Propulsion Shielding | x1 | -5/Factory System Restoration Module | x2 | -4/Factory Exp. Propulsion Shielding | x1 | -3/Research Exp. Utility Shielding | x1 | -2/Research Mni. Smartbomb Launcher | x1 | -2/Research Imp. Powered Armor | x1 | -2/Research Imp. Powered Armor | x1 | -2/Research Singularity Reactor | x1 | -1/Access Exp. Biometal Medium Treads | x1 | -1/Access Alien Tech Used ----------------- Dimensional Node Initializer Achievements -------------- Mad Max Challenges ------------ None Game ------ Seed LatentGammaEdition Manual? 0 Play Time 05:02:51 Cumulative 669.0 hours Start 2019.10.29 @ 18:47:37 End 2019.10.30 @ 11:28:56 Sessions 7 Manual Loads 0 Difficulty Rogue Special Mode None Game No. 161 Rogue 161 Adventurer 0 Explorer 0 Win Type 0 Total 29 Types 21/0/2/3/2/0/1 Lore% 96 Gallery% 97 Achievement% 90 Wizard Run 0 Options --------- ASCII 0 Keyboard 1 Movement Numpad Keybinds 0 Fullscreen 1 Font 18/SmallcapsGlow Map View 76x50 Tactical HUD 1 Map Filters NONE Filters NONE Steam 1 RUN: a4466b70-c843-4b24-9902-247125f26813